Cogmind - Beta 17 @@@ ROGUE MODE // 2026.06.23 @ 19:56:05 Player: Lolterzard Result: Destroyed by as-57511 with Assembled Heavy Rifle Performance ------------- Evolutions (0) 0 Regions Visited (2) 400 Robots Destroyed (24) 120 Value Destroyed (410) 410 Prototype IDs (0) 0 Alien Tech Used (0) 0 Bonus (0) 0 TOTAL SCORE: 930 Bonus ------- None Cogmind --------- Core Integrity 0/250 Matter 145/300 Energy 100/100 System Corruption 1% Temperature Cool (0) Movement Rolling (200) Ox8 Location -10/Mines Parts ------- > --- POWER (1) -------- (None) > --- PROPULSION (2) --- Wheel > --- UTILITY (2) ------ Huge Storage Unit > --- WEAPON (2) ------- Grenade Launcher > --- INVENTORY (25) --- Ion Engine Ion Engine Light Ion Engine Compact Wheel Heat Sink Small Storage Unit Large Matter Pod (150) Large Matter Pod (3) Power Shielding Power Shielding Power Shielding Medium Laser Assault Rifle Assault Rifle Assault Rifle Datajack Peak State ------------ > --- POWER ------------ Light Ion Engine > --- PROPULSION ------- Compact Wheel Compact Wheel > --- UTILITY ---------- Huge Storage Unit Seismic Detector > --- WEAPON ----------- Assault Rifle Assault Rifle > --- INVENTORY -------- Ion Engine Ion Engine Small Storage Unit Power Shielding Power Shielding Medium Laser Grenade Launcher Grenade Launcher Grenade Launcher Datajack [Rating: 8] Favorites ----------- Power Ion Engine Engine Ion Engine Propulsion Compact Wheel Treads Light Treads Wheel Compact Wheel Utility Huge Storage Unit Device Seismic Detector Storage Huge Storage Unit Weapon Assault Rifle Ballistic Gun Assault Rifle Launcher Grenade Launcher Build | -11 -10 -10 ------- Run | Yrd Mat Min Slots Evolved . | . . . Power . | . . . Propulsion . | . . . Utility . | . . . Weapon . | . . . Parts Attached 19 | 7 7 5 Power 3 | 1 2 . Engine 3 | 1 2 . Core . | . . . Reactor . | . . . Propulsion 6 | 2 2 2 Treads 2 | 2 . . Leg . | . . . Wheel 4 | . 2 2 Hover . | . . . Flight . | . . . Utility 4 | 2 2 . Device 2 | 1 1 . Storage 2 | 1 1 . Processor . | . . . Hackware . | . . . Protection . | . . . Artifact . | . . . Weapon 6 | 2 1 3 Energy Gun . | . . . Energy Cannon . | . . . Ballistic Gun 3 | 2 1 . Ballistic Cannon . | . . . Launcher 3 | . . 3 Special Weapon . | . . . Impact Weapon . | . . . Slashing Weapon . | . . . Piercing Weapon . | . . . Special Melee Weapon . | . . . Unidentified Prototypes . | . . . Parts Lost 7 | . 1 6 Power 1 | . . 1 Propulsion 2 | . . 2 Utility 2 | . 1 1 Weapon 2 | . . 2 Highest Loss Streak 5 | . 1 5 To Critical Strikes . | . . . Average Backups 11 | 3 10 16 Power 2 | . 2 3 Propulsion . | 1 . . Utility 4 | . 3 7 Weapon 3 | . 4 5 Tool/Special . | . . . Unused Backups 9 | . . 9 Power 1 | . . 1 Propulsion . | . . . Utility 6 | . . 6 Weapon 1 | . . 1 Tool/Special 1 | . . 1 Average Slot Usage (%) 97 | . 99 92 Engine 13 | . 14 13 Treads 2 | . 3 . Wheel 24 | . 24 24 Device 13 | . 13 12 Storage 14 | . 14 14 Ballistic Gun 26 | . 28 24 Peak Build Rating 8 | 7 8 8 Average Rating 7 | 5 7 7 On Entrance 5 | . 7 8 Avg Prop Armor Cover (%) 23 | 32 . 5 Naked Turns . | . . . Heaviest Build 92 | 15 90 92 Greatest Support 40 | 40 40 32 Greatest Overweight (x) 8 | 4 2 8 Average Overweight (x) 2 | . 1 4 Largest Inventory Capacity 25 | 8 25 25 Average Capacity 21 | 7 22 25 Most Carried 17 | 5 17 17 Average Carried 11 | 3 11 16 Final Capacity 25 | 8 25 25 Final Carried 16 | 4 16 16 Class Distribution -------------------- 100% | Mutant Dominant Class ---------------- Mutant | -10/Materials Mutant | -10/Mines Resources | -11 -10 -10 ----------- Run | Yrd Mat Min Matter Collected 808 | 318 410 80 Remotely 168 | . 88 80 Salvage Created 791 | 153 522 116 Parts 47 | 14 21 12 Haulers Intercepted 1 | . 1 . Recyclers Shooed 1 | 1 . . Parts Field Recycled . | . . . Retrieved Matter . | . . . Parts Self-Destructed . | . . . Prevented . | . . . Parts Restored . | . . . Kills | -11 -10 -10 ------- Run | Yrd Mat Min Combat Hostiles Destroyed 26 | . 8 18 Guns 11 | . 8 3 AOE 15 | . . 15 Classes Destroyed 9 | 3 3 3 Worker 3 | 2 1 . Builder 1 | . . 1 Tunneler 4 | 3 . 1 Hauler 1 | . 1 . Recycler 2 | 1 1 . Watcher 2 | . 2 . Swarmer 3 | . . 3 Grunt 8 | . 8 . Assembled 15 | . . 15 Best Kill Streak 15 | 2 5 15 Combat Bots Only 15 | . 4 15 Max Kills in Single Turn 4 | 2 1 4 Gunslinging . | . . . Exploded 4 | . . 4 Melee . | . . . Uniques/NPCs Destroyed . | . . . Combat | -11 -10 -10 -------- Run | Yrd Mat Min Hostile Shots Fired 98 | . 46 52 Missed 30 | . 10 20 Hits 68 | . 36 32 Melee 2 | . . 2 Projectile 66 | . 36 30 Critical Strikes 1 | . 1 . Part Disruptions 1 | . . 1 Damage Taken 1036 | . 461 575 Core 253 | . 119 134 Absorbed by Shields . | . . . Core Remaining (%) 100 | 100 . . Volleys Fired 59 | 8 35 16 Largest 2 | 2 2 2 Hottest 60 | 40 40 60 Shots Fired 114 | 16 70 28 Gun 100 | 16 70 14 Cannon . | . . . Launcher 14 | . . 14 Special . | . . . Kinetic 100 | 16 70 14 Thermal . | . . . Explosive 14 | . . 14 Electromagnetic . | . . . Robot Hit Streak 10 | 4 10 3 Robot Miss Streak 3 | 1 3 3 Penetration Max . | . . . Secondary Targets 3 | . 3 . Max Gunslinging Chain 1 | . 1 . Shots Hit Robots 72 | 10 50 12 Core Hits 71 | 7 22 42 Critical Kills . | . . . Critical Parts Destroyed 1 | . 1 . Critical Strikes 1 | . 1 . Destroy 1 | . 1 . Melee Attacks . | . . . Impact . | . . . Slashing . | . . . Piercing . | . . . Sneak Attacks . | . . . Combat Hostiles . | . . . Follow-up Attacks . | . . . Damage Inflicted 1998 | 138 668 1192 Guns 897 | 138 668 91 Cannons . | . . . Explosions 1101 | . . 1101 Melee . | . . . Ramming . | . . . Kinetic 897 | 138 668 91 Thermal . | . . . Explosive 1101 | . . 1101 Electromagnetic . | . . . Impact . | . . . Slashing . | . . . Piercing . | . . . Highest Corruption 1 | . 1 1 Average Corruption 1 | . 1 1 Corruption Purged . | . . . Corruption Blocked . | . . . Effects 3 | . 1 2 Matter Fused 2 | . 1 1 Heat Flow Errors 1 | . . 1 Overload Shots . | . . . Overflow Damage 35 | . . 35 Projectiles . | . . . Explosions 35 | . . 35 Melee . | . . . Knockbacks . | . . . Impact . | . . . Kinetic . | . . . Secondary . | . . . Self-Inflicted Damage 83 | . . 83 Shots 4 | . . 4 Rammed . | . . . Targets Rammed . | . . . Kicked . | . . . Crushed . | . . . Highest Temperature 116 | . 29 116 Average Temperature 25 | . 13 66 Received Heat Transfer 264 | . 264 . Siege Activations . | . . . Martial Activations . | . . . Shielding Activations . | . . . Robots Disrupted . | . . . Combat Hostiles . | . . . Robots Corrupted . | . . . Combat Hostiles . | . . . Parts Fried . | . . . Impact Corruptions . | . . . Robots Melted . | . . . Combat Hostiles . | . . . Parts Melted . | . . . Heat Transferred . | . . . Parts Sabotaged . | . . . Parts Stolen . | . . . Parts Stripped . | . . . Power Chain Reactions . | . . . Alert | -11 -10 -10 ------- Run | Yrd Mat Min Maximum Alert Level . | . . . Low Security (%) 100 | 100 100 100 Level 1 . | . . . Level 2 . | . . . Level 3 . | . . . Level 4 . | . . . Level 5 . | . . . High Security . | . . . Max Security . | . . . Peak Influence 97 | 10 97 60 Initial . | . . . Average 24 | 2 30 18 Influence Increases 382 | 30 241 111 Destroy 0b10 Robot/C 220 | . 160 60 Destroy 0b10 Robot/NC 65 | 30 25 10 Destroy Leader 56 | . 46 10 Successful Hack 10 | . 10 . Destroy Structure 31 | . . 31 Influence Decreases 382 | 30 241 111 Time Decay 351 | 30 231 90 Lost Part 31 | . 10 21 Squads Dispatched 2 | . 2 . Investigation . | . . . Extermination . | . . . Reinforcement 2 | . 2 . Assault . | . . . Garrison . | . . . Intercept . | . . . Searches Triggered . | . . . Construction Impeded . | . . . Haulers Reinforced . | . . . Active Scanning Responses . | . . . Cargo Convoy Interrupts . | . . . Stealth | -11 -10 -10 --------- Run | Yrd Mat Min Distress Signals 1 | . 1 . Communications Jammed . | . . . Distress Signals . | . . . Times Spotted 36 | . 12 24 Peak Tracking Total 10 | . 3 10 Tactical Retreats . | . . . Traps | -11 -10 -10 ------- Run | Yrd Mat Min Traps Triggered 2 | . 2 . Indirectly . | . . . Trap Hack Attempts . | . . . Triggered . | . . . Disarmed . | . . . Reprogrammed . | . . . Reused . | . . . Traps Extracted . | . . . Installed . | . . . Triggered . | . . . Machines | -11 -10 -10 ---------- Run | Yrd Mat Min Machines Disabled . | . . . Max in Single Turn . | . . . Machines Repaired . | . . . Machines Dismantled . | . . . Machines Sabotaged . | . . . Overloaded Fab Kills . | . . . Hacking | -11 -10 -10 --------- Run | Yrd Mat Min Machines Accessed 4 | . 4 . Terminals 4 | . 4 . Fabricators . | . . . Repair Stations . | . . . Recycling Units . | . . . Scanalyzers . | . . . Garrison Access . | . . . Total Hacks 6 | . 6 . Successful 2 | . 2 . Failed 4 | . 4 . Catastrophic 1 | . 1 . Database Lockouts . | . . . Manual . | . . . Terminals 6 | . 6 . Fabricators . | . . . Repair Stations . | . . . Recycling Units . | . . . Scanalyzers . | . . . Garrison Access . | . . . Terminal Hacks 2 | . 2 . Maintenance Status 1 | . 1 . Registered Components 1 | . 1 . Fabricator Hacks . | . . . Repair Station Hacks . | . . . Recycling Unit Hacks . | . . . Scanalyzer . | . . . Garrison Access Hacks . | . . . Unauthorized Hacks . | . . . Terminals . | . . . Fabricators . | . . . Repair Stations . | . . . Recycling Units . | . . . Scanalyzers . | . . . Garrison Access . | . . . Data Cores Recovered . | . . . Used . | . . . Hacking Detections 1 | . 1 . Full Trace Events 1 | . 1 . Feedback Events . | . . . Feedback Blocked . | . . . Robot Schematics Acquired . | . . . Robots Built . | . . . Authchips . | . . . Time . | . . . Total Robot Build Rating . | . . . Part Schematics Acquired . | . . . Parts Built . | . . . Authchips . | . . . Time . | . . . Total Part Build Rating . | . . . Part Studies Acquired . | . . . Parts Repaired . | . . . Time . | . . . Parts Recycled . | . . . Recycled Matter . | . . . Retrieved Matter . | . . . Retrieved Components . | . . . Parts Scanalyzed . | . . . Part Schematics Acquired . | . . . Parts Damaged . | . . . Bothacking | -11 -10 -10 ------------ Run | Yrd Mat Min Used RIF Installer . | . . . Robots Hacked . | . . . Non-combat . | . . . Combat . | . . . Robot Hacks Applied . | . . . Relay Couplers Released . | . . . Fabnet Peak Effective % . | . . . Robots Rewired . | . . . Allies Hacked . | . . . Hacks Repelled . | . . . Allies | -11 -10 -10 -------- Run | Yrd Mat Min Total Allies . | . . . Largest Group . | . . . Highest-Rated Group . | . . . Highest-Rated Ally . | . . . Total Orders . | . . . Ally Attacks . | . . . Total Damage . | . . . Kills . | . . . Allies Corrupted . | . . . Allies Melted . | . . . Intel | -11 -10 -10 ------- Run | Yrd Mat Min Active Infowar (turns) 665 | 52 613 . Seismic 665 | 52 613 . Robot Analysis Total . | . . . Derelict Logs Recovered . | . . . Drone Launches . | . . . Drone Recoveries . | . . . Exploration | -11 -10 -10 ------------- Run | Yrd Mat Min Turns Passed 1139 | 121 745 273 Spaces Moved 672 | 61 463 148 Core 22 | 22 . . Treads 55 | 39 16 . Legs . | . . . Wheels 595 | . 447 148 Hover . | . . . Flight . | . . . Fastest Speed 50 | 50 100 130 Average Speed 134 | 135 130 145 Slowest Speed 250 | 250 160 200 Overloaded Moves . | . . . Propulsion Burnouts . | . . . Robots Hopped . | . . . Potential Cave-ins . | . . . Cave-ins Triggered . | . . . Exploration Rate (%) 38 | 4 71 41 Regions Visited 2 Branch Regions 1 Pre-discovered Areas . | . . . Known Exits Taken . | . . . Unknown Exits Taken 2 | 1 1 . Scrap Searched . | . . . Spaces Dug . | . . . Terrain Destroyed 45 | . . 45 Melee . | . . . Projectile . | . . . AOE 45 | . . 45 Terrain Rammed . | . . . Walls Destroyed . | . . . Machines Disabled . | . . . Actions | -11 -10 -10 --------- Run | Yrd Mat Min Total 788 | 80 533 175 Wait 22 | . 16 6 Move 670 | 60 462 148 Hop . | . . . Pick Up 16 | 5 11 . Fast Attach 7 | 6 . 1 Attach 5 | 1 3 1 Detach . | . . . Swap 7 | . 4 3 Drop 2 | . 2 . Fire 59 | 8 35 16 Melee . | . . . Ram . | . . . Kick . | . . . Crush . | . . . Escape Stasis . | . . . Rewire . | . . . Trap . | . . . Miscellaneous . | . . . Route ------- -11/Scrapyard -10/Materials (discovered 4 exits: [*Mat x3] / [*Min]) -10/Mines History --------- Turn | Location | Event 37 | -11/Scrapyard | Discovered new exit (range 16) 122 | -11/Scrapyard | Entered Materials 230 | -10/Materials | Discovered new exit (range 8) 301 | -10/Materials | Discovered new exit (range 11) 304 | -10/Materials | Build established: Mutant 505 | -10/Materials | Discovered new exit (range 15) 782 | -10/Materials | Discovered new exit (range 9) 867 | -10/Materials | Entered Mines 873 | -10/Mines | Met a Derelict bent on vengeance 887 | -10/Mines | Core integrity fell below 50% 1080 | -10/Mines | A weapon hastily lodged in a ceiling crevice suddenly fell to the ground 1098 | -10/Mines | Assembled infested the area 1138 | -10/Mines | Core integrity fell below 20% 1140 | -10/Mines | Destroyed by as-57511 with Assembled Heavy Rifle Last Messages --------------- 01128_ Destroyed Asb. Hover Unit. 01128_ as-26573 destroyed. 01128_ Wheel destroyed. 01128_ Destroyed Wheel. 01130_ The unstable cave ceiling collapses. 01131_ K-01 Serf collects debris. 01133_ The unstable cave ceiling collapses. 01133_ Grenade Launcher destroyed. 01135_ Knocked back. 01137_ The unstable cave ceiling collapses. 01137_ K-01 Serf collects debris. 01137_ as-13948 destroyed. 01137_ Destroyed Asb. Hover Unit. 01137_ as-64920 destroyed. [Achievement: Exterminator] 01137_ Destroyed Asb. Hover Unit. 01138_ Grenade Launcher destroyed. 01139_ The unstable cave ceiling collapses. 01140_ C-45 Heavy ARC bursts open, deploying its payload. 01140_ D-53 Grenadier unfolds itself. Map ----- +----------------------------------------------------+ | ???????????????????????????????????????????????? | | ??????????????????????????????????????????####?? | | ??????????????????????????????????????????# ?? | | ??????????????????????????????????????????# ?? | | ??????????????????????????????????????????# #?? | | ??????????????????????????????????????????# #?? | | ??????????????????????????????????????????# #?? | | ??????????????????????????????????????????# #?? | | ??????????????????????????????????????????# #?? | | ????????????????????????????? ???????????# #?? | | ????????????????????????????? #???????????# #?? | | ?????????????" ##??????????? #?????????### ##? | | ?????????????" # ?????????# #????????## ## | | ????????????? ?????????# #?????#### | | ?????????????? ???????##d ###??## | | ???????????????# #?????## d #??# ### | | ???????????????# ###### ### #?# | | ???????????????# #?? | | ????????????""??? ### ##?? | | ????????????"" #### #??####### ## #??? | | ???????????""" k #?????????# ### #### | | ????????????? ##????????# #?# | | ???????????????#;# ####?????# ### #### | | ???????????????#;;; ##????# ## #### | | ???????????????#; a #????# # | | ??????????????# ; @ #????# | | ??????????????## #????## # | | ???????????????# #????## ## | | ???????????????# ##??## ###? | | ??????????????# a #?## ##??? | | ??????????????# # ### * #???? | | ??????????????# # # ### ! ! ##?### | | ????????????? #?## !|##??# | | ???????????? aa #??## ##########???#=* | | ??????????? % #????#####????????????#= | | ???????????? ?????????####?????##### = | | ????????????### ????????## #???## * | | ??????????????### ????????# #?## | | ????????????????## # #????????# ## | | ???????????????????#$ ?????????# ##### | | ????????????????????? ?????????## ##???? | | ????????????????????????????????#### ###### | | ???????????????????????????????????### # | | ?????????????????????????????????????######### # | | ????????????????????????????????????????????## # | | ???????????????????????????????????????????## | | ???????????????????????????????????????????# | | ???????????????????????????????????????????##! | | ????????????????????????????????????????????# ## | | ????????????????????????????????????????????##?? | +----------------------------------------------------+ Best States ------------- Heat Dissipation 25 Energy Generation 10 Energy Capacity 250 Matter Stores 300 Matter Capacity 300 Sight Range 16 Terrain Scan Density 10 Evasion (%) 50 Recoil Reduction 2 Item Schematics ----------------- None Robot Schematics ------------------ None Fabricated ------------ Nothing Repaired ---------- Nothing Studied --------- None Alien Tech Used ----------------- None Achievements -------------- Exterminator Challenges ------------ None Game ------ Seed PrecisionDroneInsulator Manual? 0 Play Time 00:07:30 Cumulative 51.5 hours Start 2026.06.23 @ 19:50:18 End 2026.06.23 @ 19:56:05 Sessions 1 Manual Loads 0 Difficulty Rogue Special Mode None Game No. 110 Rogue 110 Adventurer 0 Explorer 0 Win Type - Total 0 Types 0/0/0/0/0/0/0/0/0/0 Lore% 27 Gallery% 24 Achievement% 22 Wizard Run 0 Options --------- Layout 0 ASCII 0 Keyboard 0 Movement Mouse Keybinds 0 Fullscreen 2 Font 24/Smallcaps Map View 76x50 Zoom Use 0% Tactical HUD 1 Map Filters NONE Filters NONE Steam 1 RUN: 4013453a-539f-4c5a-ab13-44ebd8ad31b5